bitfinex-derivatives/quotes_BTCF0:USTF0_20250501
["timestamp","ask_amount","ask_price","bid_price","bid_amount"]
[1746095152176,1.09127243,96251.0,96245.0,0.00883518]
[1746095152376,1.00274992,96246.0,96245.0,0.20881081]
[1746095152783,0.08852251,96246.0,96245.0,0.20881081]
[1746095153182,0.21060044,96246.0,96245.0,0.00103901]
[1746095153894,0.21060044,96246.0,96245.0,0.20881081]
[1746095154087,0.21060044,96246.0,96245.0,0.26108646]
[1746095154279,0.21060044,96246.0,96245.0,0.2688024]
[1746095154480,0.21160044,96246.0,96245.0,0.0610306]
[1746095154686,0.21160044,96246.0,96245.0,0.2688024]
[1746095154991,0.21160044,96246.0,96245.0,0.0610306]
[1746095155491,7.291e-05,96260.0,96250.0,0.207761]
[1746095155696,0.10742453,96261.0,96260.0,0.2077394]
[1746095156188,0.10742453,96261.0,96259.0,0.2077413]
[1746095156396,0.10742453,96261.0,96245.0,0.6708732]
[1746095156397,0.2077452,96258.0,96255.0,0.2077483]
[1746095156691,0.17146898,96257.0,96251.0,0.0519397]
[1746095156991,0.25999149,96257.0,96252.0,0.1915]
[1746095157183,6.906e-05,96257.0,96256.0,0.207748]
[1746095157387,0.17139992,96257.0,96256.0,0.207748]
[1746095157694,4e-05,96261.0,96259.0,0.2077408]
[1746095157879,0.3608,96264.0,96260.0,0.5864394]
[1746095158087,0.29343992,96261.0,96260.0,0.3787]
[1746095158285,0.50117712,96261.0,96260.0,0.3787]
[1746095158485,0.3297772,96261.0,96260.0,0.3787]
[1746095158695,0.12204,96261.0,96260.0,0.3787]
[1746095158990,0.3297772,96261.0,96260.0,0.3787]
[1746095159391,0.3307772,96261.0,96260.0,0.3787]
[1746095159890,0.32184,96261.0,96241.0,0.1725]
[1746095160091,0.2077641,96249.0,96246.0,0.3752]
[1746095160285,0.3839,96248.0,96246.0,0.3752]
[1746095160481,0.2077696,96246.0,96245.0,0.0610306]
[1746095160695,1.57131952,96246.0,96245.0,0.0610306]
[1746095160906,2.04814203,96246.0,96245.0,0.0610306]
[1746095161391,2.17014203,96246.0,96245.0,0.0610306]
[1746095161599,2.17114203,96246.0,96245.0,0.0650306]
[1746095161892,2.16914203,96246.0,96245.0,0.0650306]
[1746095162487,2.16914203,96246.0,96245.0,0.0670306]
[1746095163695,1.96337243,96246.0,96245.0,0.0670306]
[1746095163895,0.87214,96246.0,96245.0,0.0670306]
[1746095164100,0.67334,96246.0,96245.0,0.2748024]
[1746095164397,0.6733,96246.0,96245.0,0.2748024]
[1746095164597,0.67334,96246.0,96245.0,0.6560024]
[1746095164897,0.123,96246.0,96245.0,0.6560024]
[1746095165100,0.09190167,96246.0,96245.0,0.93240239]
[1746095165293,5.401e-05,96255.0,96254.0,0.2077523]
[1746095165489,0.197,96260.0,96258.0,0.2077436]
[1746095165692,1.02835,96260.0,96259.0,0.3812]
[1746095166198,1.41031243,96260.0,96259.0,0.5889416]
[1746095166493,0.31904,96260.0,96259.0,0.5889416]
[1746095166891,0.319,96260.0,96259.0,0.5889416]
[1746095167085,0.19704,96260.0,96259.0,0.5889416]
[1746095167485,0.19704,96260.0,96259.0,0.5899416]
[1746095168092,0.19704,96260.0,96259.0,0.5909416]
[1746095168489,0.19804,96260.0,96259.0,0.7634416]
[1746095169394,0.0519312,96267.0,96259.0,0.7634416]
[1746095169395,0.44251908,96291.0,96260.0,0.2077394]
[1746095169597,0.1947,96287.0,96274.0,0.0519273]
[1746095170001,0.1842,96286.0,96272.0,0.3608]
[1746095170194,4e-05,96279.0,96272.0,0.3608]
[1746095170499,0.3608,96283.0,96273.0,0.10388585]
[1746095170693,4e-05,96279.0,96273.0,0.10388585]
[1746095171088,4e-05,96279.0,96274.0,0.103868]
[1746095171293,0.00104,96279.0,96274.0,0.103868]
[1746095171493,0.00104,96279.0,96272.0,0.3648]
[1746095171796,0.00104,96279.0,96273.0,0.2077355]
[1746095172204,0.00104,96279.0,96274.0,0.104868]
[1746095172404,0.1842,96278.0,96274.0,0.104868]
[1746095172600,0.1842,96278.0,96274.0,0.001]
[1746095172801,0.1842,96278.0,96273.0,0.003]
[1746095173104,0.1842,96278.0,96273.0,0.10686804]
[1746095173506,0.1842,96278.0,96273.0,0.15579574]
[1746095173803,0.1842,96278.0,96274.0,0.003]
[1746095174206,0.2076866,96285.0,96274.0,0.003]
[1746095174207,0.00023129,96292.0,96287.0,0.2076811]
[1746095174402,0.00023129,96292.0,96274.0,0.253]
[1746095174403,0.0519209,96286.0,96275.0,0.10386858]
[1746095174709,0.2076753,96290.0,96283.0,0.3608]
[1746095174896,0.1843,96289.0,96283.0,0.3608]
[1746095175207,0.2076876,96284.0,96283.0,0.3608]
[1746095175407,0.207707,96275.0,96274.0,0.004]
[1746095175600,1.21045692,96275.0,96274.0,0.004]
[1746095175796,1.81731943,96275.0,96274.0,0.003]
[1746095176111,0.2077092,96274.0,96273.0,0.003]
[1746095176304,1.2368592,96274.0,96273.0,0.003]
[1746095176505,1.20054992,96274.0,96273.0,0.003]
[1746095177009,1.20054992,96274.0,96268.0,0.2077206]
[1746095177206,0.17139992,96272.0,96268.0,0.2077206]
[1746095177407,0.17139992,96272.0,96269.0,0.2077194]
[1746095177596,0.1985,96273.0,96269.0,0.2077194]
[1746095177801,0.17139992,96272.0,96269.0,0.2077194]
[1746095178000,0.35589992,96272.0,96270.0,0.15523434]
[1746095178199,0.1985,96271.0,96270.0,0.15523434]
[1746095178899,0.57761562,96271.0,96270.0,0.15523434]
[1746095179299,0.36889992,96271.0,96270.0,0.15523434]
[1746095179495,0.1985,96271.0,96270.0,0.15523434]
[1746095179700,0.55439992,96271.0,96270.0,0.15523434]
[1746095179909,0.55439992,96271.0,96270.0,0.15623434]
[1746095180910,2.20132813,96271.0,96270.0,0.15623434]
[1746095181107,2.56212813,96271.0,96270.0,0.15623434]
[1746095181510,2.56212813,96271.0,96270.0,0.001]
[1746095182514,0.20772,96269.0,96268.0,0.15523434]
[1746095182712,1.81833243,96269.0,96268.0,0.15523434]
[1746095183103,0.2077317,96264.0,96250.0,0.08813415]
[1746095183303,0.3608,96258.0,96250.0,0.03619415]
[1746095183499,0.3608,96258.0,96257.0,0.2077459]
[1746095183703,0.3598,96258.0,96257.0,0.2077459]
[1746095183903,0.35984,96258.0,96257.0,0.2077459]
[1746095184807,0.36084,96258.0,96257.0,0.2077459]
[1746095185218,0.3546481,96258.0,96257.0,0.2077459]
[1746095185508,0.356704,96262.0,96261.0,0.2077372]
[1746095185898,0.3608,96266.0,96264.0,0.20773]
[1746095186303,0.1903,96268.0,96264.0,0.20773]
[1746095186504,0.1903,96268.0,96267.0,0.2077243]
[1746095187212,0.5511,96268.0,96267.0,0.2077243]
[1746095187414,0.5511,96268.0,96261.0,0.001]
[1746095187615,0.5511,96268.0,96267.0,0.001]
[1746095187918,0.5511,96268.0,96267.0,0.2087243]
[1746095188103,0.5511,96268.0,96267.0,0.001]
[1746095188711,0.5511,96268.0,96261.0,0.0519338]
[1746095188912,0.1933,96268.0,96267.0,0.001]
[1746095189207,0.1933,96268.0,96264.0,0.2077305]
[1746095189408,0.003,96268.0,96264.0,0.2077305]
[1746095189609,0.17139992,96265.0,96230.0,0.0519506]
[1746095189916,0.001,96268.0,96257.0,0.10387721]
[1746095190215,0.17139992,96271.0,96259.0,0.0519349]
[1746095190520,0.001,96268.0,96267.0,0.2077243]
[1746095190922,0.3608,96272.0,96267.0,0.11973222]
[1746095191218,0.3608,96272.0,96269.0,0.2077198]
[1746095191421,0.3608,96272.0,96270.0,0.01584961]
[1746095191608,0.3608,96272.0,96266.0,0.1754]
[1746095191609,0.35564802,96272.0,96271.0,0.01584961]
[1746095193018,0.35564802,96272.0,96271.0,0.22356531]
[1746095193613,2.14897395,96272.0,96271.0,0.01584961]
[1746095193918,1.94126045,96272.0,96271.0,0.01584961]
[1746095194114,2.30306045,96272.0,96271.0,0.01584961]
[1746095194316,2.51077395,96272.0,96271.0,0.01584961]
[1746095194515,2.50977395,96272.0,96271.0,0.01584961]
[1746095194721,2.14897395,96272.0,96271.0,0.01584961]
[1746095195319,1.50977395,96272.0,96271.0,0.01584961]
[1746095195720,1.51277395,96272.0,96271.0,0.01584961]
[1746095196124,0.2077416,96259.0,96258.0,0.3608]
[1746095196326,0.94126045,96259.0,96258.0,0.3608]
[1746095197019,0.33339794,96259.0,96258.0,0.5685437]
[1746095197327,0.60790251,96259.0,96258.0,0.5685437]
[1746095198020,0.60990251,96259.0,96258.0,0.3608]
[1746095198220,0.94330045,96259.0,96258.0,0.3608]
[1746095198616,0.94330045,96259.0,96258.0,0.3618]
[1746095199016,0.94130045,96259.0,96258.0,0.3618]
[1746095199425,1.13760045,96259.0,96258.0,0.3608]
[1746095199618,1.33010045,96259.0,96258.0,0.3608]
[1746095200327,1.33010045,96259.0,96252.0,0.0015584]
[1746095200328,0.99670251,96259.0,96252.0,0.0015584]
[1746095200625,0.33339794,96253.0,96252.0,0.0015584]
[1746095200824,0.54115244,96253.0,96252.0,0.0015584]
[1746095201123,1.13684385,96253.0,96252.0,0.0015584]
[1746095201314,1.12905435,96253.0,96252.0,0.0015584]
[1746095201916,1.51785435,96253.0,96252.0,0.0015584]
[1746095202823,0.2077696,96246.0,96245.0,0.37054771]
[1746095203024,1.48986945,96246.0,96245.0,0.37054771]
[1746095203223,1.28209985,96246.0,96245.0,0.37054771]
[1746095203412,1.48990945,96246.0,96245.0,0.37054771]
[1746095204424,1.49290945,96246.0,96245.0,0.37054771]
[1746095204627,1.49590945,96246.0,96245.0,0.37054771]
[1746095205112,1.49590945,96246.0,96245.0,0.0610306]
[1746095205937,1.69080945,96246.0,96245.0,0.0610306]
[1746095207524,1.68780945,96246.0,96245.0,0.0610306]
[1746095207721,1.69080945,96246.0,96245.0,0.0610306]
[1746095207926,1.68780945,96246.0,96245.0,0.0610306]
[1746095208225,1.69080945,96246.0,96245.0,0.0610306]
[1746095208415,1.69180945,96246.0,96245.0,0.0610306]
[1746095209426,1.68876945,96246.0,96245.0,0.0610306]
[1746095209615,1.69180945,96246.0,96245.0,0.0610306]
[1746095209817,1.48403985,96246.0,96245.0,0.0610306]
[1746095210223,1.69180945,96246.0,96245.0,0.0610306]
[1746095211019,1.33100945,96246.0,96245.0,0.0610306]
[1746095211221,1.32600945,96246.0,96245.0,0.0610306]
[1746095211425,1.32800945,96246.0,96245.0,0.0610306]
[1746095211825,0.80676251,96246.0,96245.0,0.2688024]
[1746095212024,0.80676251,96246.0,96245.0,0.0610306]
[1746095212222,1.32796945,96246.0,96245.0,0.0610306]
[1746095212726,1.32800945,96246.0,96245.0,0.0610306]
[1746095213127,1.32600945,96246.0,96245.0,0.0610306]
[1746095213834,1.32800945,96246.0,96245.0,0.0610306]
[1746095214034,1.32600945,96246.0,96245.0,0.0610306]
[1746095214233,1.56085473,96246.0,96245.0,0.0610306]
[1746095214831,1.56285473,96246.0,96245.0,0.0610306]
[1746095215735,1.56485473,96246.0,96245.0,0.0610306]
[1746095215928,1.56285473,96246.0,96245.0,0.0610306]
[1746095216129,1.56585473,96246.0,96245.0,0.0610306]
[1746095216637,0.2078106,96227.0,96226.0,0.2076152]
[1746095216937,0.5686106,96227.0,96226.0,0.2076152]
[1746095217231,0.5686106,96227.0,96226.0,0.25830363]
[1746095217632,0.9399106,96227.0,96226.0,0.25830363]
[1746095217825,0.7321,96227.0,96226.0,0.25830363]
[1746095218026,0.9399106,96227.0,96226.0,0.25830363]
[1746095219239,0.9399506,96227.0,96226.0,0.25830363]
[1746095219528,0.9399506,96227.0,96211.0,0.26399521]
[1746095219529,0.2078207,96223.0,96211.0,0.26399521]
[1746095219735,0.3725,96222.0,96212.0,0.2078423]
[1746095220136,0.5803217,96222.0,96212.0,0.2078423]
[1746095220534,0.00010574,96221.0,96212.0,0.00781747]
[1746095220731,0.20793024,96221.0,96211.0,0.47583991]
[1746095221029,0.38540574,96221.0,96211.0,0.26799521]
[1746095221220,0.38540574,96221.0,96211.0,0.31995641]
[1746095221426,0.38540574,96221.0,96213.0,0.2078397]
[1746095221627,0.38540574,96221.0,96213.0,0.05195032]
[1746095221628,0.3608,96214.0,96213.0,0.05195032]
[1746095221823,0.3608,96214.0,96212.0,0.207842]
[1746095222026,0.3932,96213.0,96212.0,0.460842]
[1746095222222,0.3932,96213.0,96212.0,0.210842]
[1746095222528,0.3902,96213.0,96212.0,0.457842]
[1746095222836,0.3902,96213.0,96212.0,0.25]
[1746095223331,0.3902,96213.0,96212.0,0.00774398]
[1746095223534,0.00010574,96221.0,96220.0,0.2078258]
[1746095223732,0.17665574,96226.0,96225.0,0.207815]
[1746095223927,0.3608,96243.0,96234.0,0.2077955]
[1746095224121,0.30977046,96243.0,96237.0,0.0519472]
[1746095224433,0.3618,96246.0,96240.0,0.2077816]
[1746095224632,4e-05,96243.0,96240.0,0.2077816]
[1746095224832,4e-05,96243.0,96241.0,0.2077798]
[1746095225028,4e-05,96243.0,96239.0,0.2223839]
[1746095225228,4e-05,96243.0,96240.0,0.2077822]
[1746095225928,0.00404,96243.0,96240.0,0.2087822]
[1746095226233,0.00404,96243.0,96240.0,0.001]
[1746095226531,0.2118162,96243.0,96240.0,0.002]
[1746095226831,0.31343734,96241.0,96240.0,0.002]
[1746095227031,0.52121774,96241.0,96240.0,0.002]
[1746095227230,1.50038025,96241.0,96240.0,0.002]
[1746095227934,1.50438025,96241.0,96240.0,0.002]
[1746095228826,1.50838025,96241.0,96240.0,0.002]
[1746095229629,1.50838025,96241.0,96212.0,0.09460528]
[1746095229630,0.31343734,96239.0,96212.0,0.09460528]
[1746095229830,0.3608,96221.0,96220.0,0.2078258]
[1746095230034,0.35560514,96221.0,96220.0,0.2078258]
[1746095230234,0.3608,96230.0,96229.0,0.2078063]
[1746095230436,0.35560514,96230.0,96229.0,0.2078063]
[1746095230629,0.35564514,96230.0,96229.0,0.2078063]
[1746095231340,0.35564514,96230.0,96229.0,0.3298063]
[1746095231534,0.35045028,96230.0,96229.0,0.3298063]
[1746095231928,0.34525542,96230.0,96229.0,0.3298063]
[1746095232138,0.34525542,96230.0,96229.0,0.2078063]
[1746095232436,0.34406102,96230.0,96229.0,0.2078063]
[1746095232832,0.33886662,96230.0,96229.0,0.2078063]
[1746095233935,0.0015,96235.0,96231.0,0.05195]
[1746095234124,0.0015,96235.0,96229.0,0.10391823]
[1746095234125,0.17899,96244.0,96229.0,0.22591823]
[1746095234329,0.17899,96244.0,96240.0,0.0519453]
[1746095234533,0.17903,96244.0,96230.0,0.15586893]
[1746095234733,0.17903,96244.0,96232.0,0.0519498]
[1746095234939,0.17903,96244.0,96241.0,0.2077788]
[1746095235139,0.17903,96244.0,96242.0,0.2077777]
[1746095235338,0.17903,96244.0,96243.0,0.2077761]
[1746095235540,0.18303,96244.0,96243.0,0.2077761]
[1746095235737,0.18303,96244.0,96241.0,0.2077787]
[1746095235950,0.17903,96244.0,96239.0,0.006]
[1746095236133,0.17903,96244.0,96239.0,0.2137843]
[1746095236438,0.17903,96244.0,96242.0,0.001]
[1746095236737,0.18003,96244.0,96242.0,0.001]
[1746095236932,0.18003,96244.0,96239.0,0.2137843]
[1746095237132,0.1916,96243.0,96239.0,0.2147843]
[1746095237335,0.1916,96243.0,96239.0,0.2087843]
[1746095237534,0.33707,96245.0,96240.0,0.0851456]
[1746095237535,0.33471,96245.0,96240.0,0.0851456]
[1746095237837,0.32077322,96245.0,96244.0,0.2077739]
[1746095238134,0.29677322,96245.0,96244.0,0.2077739]
[1746095238324,0.35619257,96253.0,96241.0,0.2077785]
[1746095238529,0.35619257,96253.0,96244.0,0.2077728]
[1746095238932,0.34840325,96253.0,96245.0,0.2077718]
[1746095239131,0.34840325,96253.0,96246.0,0.22287804]
[1746095239331,0.34840325,96253.0,96247.0,0.01510844]
[1746095239631,0.34840325,96253.0,96248.0,0.01510844]
[1746095239837,0.34840325,96253.0,96249.0,0.01510844]
[1746095240143,0.34940325,96253.0,96250.0,0.01510844]
[1746095240437,0.34940325,96253.0,96251.0,0.01510844]
[1746095240627,0.1816,96252.0,96246.0,0.2077696]
[1746095241838,0.1816,96252.0,96246.0,0.2087696]
[1746095242238,0.1816,96252.0,96247.0,0.319067]
[1746095243029,0.1816,96252.0,96247.0,0.495467]
[1746095243229,0.1816,96252.0,96247.0,0.2877]
[1746095243434,0.1816,96252.0,96249.0,0.0519405]
[1746095244342,0.18164,96252.0,96249.0,0.0519405]
[1746095244529,0.18164,96252.0,96247.0,0.001]
[1746095244729,0.18164,96252.0,96249.0,0.2087619]
[1746095244930,0.18164,96252.0,96249.0,0.001]
[1746095247743,0.18164,96252.0,96249.0,0.2087627]
[1746095248131,0.54244,96252.0,96249.0,0.001]
[1746095248330,0.31343734,96250.0,96249.0,0.001]
[1746095248833,1.31016085,96250.0,96249.0,0.001]
[1746095249439,0.31343734,96245.0,96230.0,0.0519509]
[1746095249643,0.36184,96252.0,96228.0,0.26454725]
[1746095249644,0.3608,96238.0,96232.0,0.1]
[1746095249842,0.3857,96237.0,96228.0,0.26454725]
[1746095250034,0.31343734,96233.0,96225.0,0.2945733]
[1746095250238,0.1867,96232.0,96225.0,0.08676]
[1746095250640,0.50013734,96232.0,96225.0,0.08676]
[1746095251039,1.10799985,96232.0,96228.0,0.002]
[1746095251244,0.3608,96229.0,96228.0,0.002]
[1746095251945,0.0519521,96228.0,96225.0,0.003]
[1746095252148,0.52125014,96226.0,96225.0,0.003]
[1746095252644,1.12911265,96226.0,96225.0,0.002]
[1746095252842,0.2078301,96218.0,96217.0,0.00155897]
[1746095253145,0.3608,96218.0,96217.0,0.00155897]
[1746095254345,0.3608,96218.0,96217.0,0.00255897]
[1746095255239,0.1995,96218.0,96217.0,0.00355897]
[1746095255539,0.19954,96218.0,96217.0,0.00355897]
[1746095256037,0.39234,96218.0,96217.0,0.00355897]
[1746095257247,0.38454777,96218.0,96217.0,0.00355897]
[1746095258343,0.38454777,96218.0,96212.0,0.0077658]
[1746095258344,1.30584762,96218.0,96212.0,0.0077658]
[1746095258546,1.12913425,96216.0,96212.0,0.0077658]
[1746095259441,0.2078409,96213.0,96212.0,0.0077658]
[1746095259641,0.2078432,96212.0,96201.0,0.3608]
[1746095259845,0.31343734,96206.0,96201.0,0.41393561]
[1746095260048,0.31343734,96207.0,96201.0,0.46590171]
[1746095260241,0.31343734,96207.0,96203.0,0.2078615]
[1746095260447,0.80116251,96206.0,96205.0,0.2078582]
[1746095260649,0.06267827,96206.0,96205.0,0.2078582]
[1746095260851,7.291e-05,96217.0,96201.0,0.46590221]
[1746095260852,0.17552067,96219.0,96218.0,0.2078301]
[1746095261349,0.17149039,96219.0,96218.0,0.01541391]
[1746095261653,0.17153039,96219.0,96218.0,0.01541391]
[1746095262253,0.17653039,96219.0,96218.0,0.01641391]
[1746095262658,0.00504,96219.0,96218.0,0.22424401]
[1746095262953,0.00409784,96226.0,96225.0,0.207815]
[1746095263151,0.00409784,96226.0,96225.0,0.13741391]
[1746095263450,0.2077832,96240.0,96225.0,0.13741391]
[1746095263649,0.2077832,96240.0,96226.0,0.01541391]
[1746095263849,0.2077832,96240.0,96227.0,0.01541391]
[1746095264049,0.2077854,96239.0,96228.0,0.01541391]
[1746095264248,5.401e-05,96236.0,96229.0,0.01541391]
[1746095264449,0.26484734,96233.0,96230.0,0.01541391]
[1746095264648,0.26484734,96233.0,96231.0,0.01541391]
[1746095264849,0.60786251,96233.0,96232.0,0.01541391]
[1746095265049,0.62564734,96233.0,96232.0,0.01541391]
[1746095265251,1.23350985,96233.0,96232.0,0.01541391]
[1746095265450,1.44130755,96233.0,96232.0,0.01541391]
[1746095266351,1.62800755,96233.0,96232.0,0.01541391]
[1746095266557,1.82440755,96233.0,96232.0,0.01541391]
[1746095267360,1.82540755,96233.0,96220.0,0.3608]
[1746095267549,0.26484734,96226.0,96217.0,0.2078313]
[1746095267751,0.37,96225.0,96217.0,0.3078313]
[1746095267953,0.97007116,96225.0,96217.0,0.3078313]
[1746095268159,0.60786251,96224.0,96217.0,0.3078313]
[1746095268360,0.60786251,96224.0,96218.0,0.2078296]
[1746095268566,0.1867,96223.0,96218.0,0.2078296]
[1746095268753,0.18150601,96223.0,96222.0,0.2078214]
[1746095269260,0.17635202,96223.0,96222.0,0.2078214]
[1746095269462,0.17115803,96223.0,96222.0,0.2078214]
[1746095269662,0.17115803,96223.0,96222.0,0.3987214]
[1746095269959,4e-05,96223.0,96222.0,0.3987214]
[1746095270361,0.3608,96231.0,96223.0,0.2078191]
[1746095271257,0.1999,96230.0,96223.0,0.2078185]
[1746095271446,0.1999,96230.0,96223.0,0.2098185]
[1746095271848,0.1999,96230.0,96223.0,0.003]
[1746095273258,0.1973,96229.0,96223.0,0.003]
[1746095273463,0.1973,96229.0,96223.0,0.004]
[1746095273654,0.1818,96228.0,96223.0,0.003]
[1746095274059,0.1973,96227.0,96224.0,0.1828]
[1746095274258,0.1973,96227.0,96225.0,0.2078136]
[1746095274558,0.14137601,96226.0,96225.0,0.194]
[1746095274949,0.13618202,96226.0,96225.0,0.194]
[1746095275465,0.13098803,96226.0,96225.0,0.194]
[1746095276457,0.13098803,96226.0,96224.0,0.001]
[1746095276657,0.1974,96225.0,96224.0,0.001]
[1746095276853,0.19120646,96225.0,96220.0,0.6205809]
[1746095277053,0.19120646,96225.0,96221.0,0.2078224]
[1746095277365,0.5686214,96222.0,96221.0,0.10392255]
[1746095277665,0.5686214,96222.0,96202.0,0.3608]
[1746095277666,0.62564734,96222.0,96209.0,0.41090147]
[1746095277864,0.60786251,96221.0,96209.0,0.31090147]
[1746095278164,0.26284734,96211.0,96209.0,0.31090147]
[1746095278364,1.06040985,96210.0,96209.0,0.31090147]
[1746095278661,1.25220985,96210.0,96209.0,0.31090147]
[1746095278860,1.24441736,96210.0,96209.0,0.31090147]
[1746095279468,1.24441736,96210.0,96209.0,0.32617884]
[1746095279863,1.24441736,96210.0,96209.0,0.32618147]
[1746095280463,1.24441736,96210.0,96209.0,0.01528]
[1746095280464,1.24541736,96210.0,96209.0,0.01528]
[1746095280666,1.24741736,96210.0,96209.0,0.01528]
[1746095281172,0.19060646,96210.0,96209.0,0.01528]
[1746095281466,0.14907734,96210.0,96209.0,0.11921983]
[1746095281665,0.14907734,96210.0,96209.0,0.01528]
[1746095282368,0.14903734,96210.0,96207.0,0.25967927]
[1746095282568,0.1917,96209.0,96207.0,0.25967927]
[1746095282771,0.1907,96209.0,96207.0,0.25967927]
[1746095283470,0.1897,96209.0,96208.0,0.01511977]
[1746095283862,0.11284683,96227.0,96209.0,0.1]
[1746095284068,5.401e-05,96219.0,96210.0,0.01511977]
[1746095284262,5.401e-05,96219.0,96211.0,0.01511977]
[1746095284460,5.401e-05,96219.0,96209.0,0.1519623]
[1746095284662,5.401e-05,96219.0,96211.0,0.0519613]
[1746095284863,5.401e-05,96219.0,96212.0,0.0519607]
[1746095285172,0.1972,96220.0,96212.0,0.0519607]
[1746095285173,0.1972,96220.0,96213.0,0.18]
[1746095285467,0.17521573,96220.0,96219.0,0.2078279]
[1746095285673,0.12985673,96220.0,96218.0,0.2078283]
[1746095285966,0.001,96219.0,96218.0,0.3878283]
[1746095286169,0.11886776,96220.0,96219.0,0.2078279]
[1746095286170,0.05828776,96220.0,96219.0,0.2078279]
[1746095286370,0.22692734,96225.0,96220.0,0.2078246]
[1746095286561,1.02268985,96225.0,96222.0,0.2078209]
[1746095286866,0.60786251,96224.0,96223.0,0.01513426]
[1746095289460,0.80816251,96224.0,96223.0,0.01513426]
[1746095289661,0.80037112,96224.0,96223.0,0.01513426]
[1746095289866,0.79937112,96224.0,96223.0,0.01513426]
[1746095290563,0.80037112,96224.0,96223.0,0.01513426]
[1746095291473,0.05192245,96238.0,96234.0,0.2077942]
[1746095291661,0.00023129,96239.0,96237.0,0.3608]
[1746095291863,0.17993799,96240.0,96226.0,0.0519532]
[1746095292063,0.3608,96234.0,96229.0,0.1519513]
[1746095292377,0.16373503,96233.0,96232.0,0.2077998]
[1746095292676,0.1585821,96233.0,96232.0,0.22398618]
[1746095292877,0.184959,96239.0,96233.0,0.0519493]
[1746095293079,0.17976607,96239.0,96234.0,0.01618638]
[1746095293279,0.17976607,96239.0,96235.0,0.22397908]
[1746095293582,0.16159023,96239.0,96236.0,0.41467728]
[1746095293764,0.1543374,96239.0,96237.0,0.01437835]
[1746095293969,0.14914447,96239.0,96236.0,0.3984909]
[1746095294171,0.14614447,96239.0,96236.0,0.3984909]
[1746095294482,0.14095154,96239.0,96236.0,0.3984909]
[1746095294771,0.13575861,96239.0,96236.0,0.1907]
[1746095296081,0.1843,96238.0,96236.0,0.1917]
[1746095296273,0.17910707,96238.0,96236.0,0.1917]
[1746095296969,0.17910707,96238.0,96236.0,0.1927]
[1746095297473,0.17910707,96238.0,96236.0,0.1917]
[1746095297677,0.15476602,96238.0,96237.0,0.207789]
[1746095297869,0.14876602,96238.0,96237.0,0.207789]
[1746095298270,0.14876602,96238.0,96236.0,0.1927]
[1746095298873,0.14306602,96238.0,96237.0,0.001]
[1746095299073,0.11726602,96238.0,96237.0,0.001]
[1746095299274,0.0905728,96238.0,96237.0,0.208789]
[1746095299472,0.0905728,96238.0,96237.0,0.207789]
[1746095299666,0.08541958,96238.0,96237.0,0.207789]
[1746095299870,0.07561958,96238.0,96237.0,0.207789]
[1746095300072,0.07042636,96238.0,96237.0,0.31169859]
[1746095300267,0.07042636,96238.0,96237.0,0.49779859]
[1746095300476,0.17243984,96239.0,96238.0,0.2077869]
[1746095300671,0.17243984,96239.0,96238.0,0.4039869]
[1746095300876,0.15884662,96239.0,96238.0,0.4039869]
[1746095301274,0.1536534,96239.0,96238.0,0.5912869]
[1746095301777,0.1252634,96239.0,96238.0,0.2077869]
[1746095301977,0.24768082,96239.0,96238.0,0.2077869]
[1746095302781,0.24768082,96239.0,96237.0,0.1962]
[1746095303076,0.15605549,96239.0,96238.0,0.10390851]
[1746095305776,0.15605549,96239.0,96238.0,0.11900856]
[1746095306181,0.33635549,96239.0,96238.0,0.11900856]
[1746095306482,0.0897795,96242.0,96238.0,0.11900856]
[1746095306688,0.14163822,96245.0,96239.0,0.30970005]
[1746095306882,0.32505896,96248.0,96240.0,0.01510005]
[1746095307079,4e-05,96245.0,96241.0,0.01510005]
[1746095307283,0.14163822,96247.0,96242.0,0.01510005]
[1746095307485,0.13644552,96246.0,96243.0,0.01510005]
[1746095307787,0.27704552,96249.0,96244.0,0.39900005]
[1746095307986,0.27704552,96249.0,96245.0,0.01510005]
[1746095308174,0.27704552,96249.0,96246.0,0.01510005]
[1746095308489,0.25210841,96249.0,96247.0,0.01510005]
[1746095308685,0.25210841,96249.0,96248.0,0.01510005]
[1746095308891,0.24960841,96249.0,96248.0,0.01510005]
[1746095309788,0.11060841,96249.0,96248.0,0.01510005]
[1746095309992,0.11160841,96249.0,96248.0,0.01510005]
[1746095310887,0.10381914,96249.0,96248.0,0.01510005]
[1746095311287,0.10381914,96249.0,96224.0,0.36494055]
[1746095311486,0.46421914,96248.0,96239.0,0.1]
[1746095311692,0.35560709,96240.0,96239.0,0.1]
[1746095311887,0.34314428,96240.0,96239.0,0.1]
[1746095312086,0.33795137,96240.0,96239.0,0.1]
[1746095312292,0.33795137,96240.0,96239.0,0.20390312]
[1746095312484,0.33275846,96240.0,96239.0,0.20390312]
[1746095312880,0.32756555,96240.0,96239.0,0.20390312]
[1746095313388,0.32237264,96240.0,96239.0,0.20390312]
[1746095313582,0.32237264,96240.0,96239.0,0.20490312]
[1746095313784,0.30419763,96240.0,96239.0,0.20490312]
[1746095313984,0.3614,96248.0,96239.0,0.20490312]
[1746095314191,0.3608,96240.0,96239.0,0.20490312]
[1746095314691,0.3556073,96240.0,96239.0,0.20690312]
[1746095314894,0.3504146,96240.0,96239.0,0.20690312]
[1746095315292,0.3452219,96240.0,96239.0,0.20690312]
[1746095315688,0.3400292,96240.0,96239.0,0.20690312]
[1746095316088,0.3348365,96240.0,96239.0,0.20590312]
[1746095316289,0.3348365,96240.0,96239.0,0.20690312]
[1746095316484,0.3296438,96240.0,96239.0,0.20690312]
[1746095316689,0.7222,96248.0,96239.0,0.20690312]
[1746095316996,0.06159274,96247.0,96240.0,0.3828]
[1746095317292,0.06159274,96247.0,96233.0,0.08716]
[1746095317592,0.3791,96246.0,96233.0,0.08896809]
[1746095317794,0.3791,96246.0,96239.0,0.002]
[1746095317994,0.3791,96246.0,96241.0,0.1]
[1746095318501,0.3791,96246.0,96242.0,0.10390689]
[1746095318893,0.37914,96246.0,96242.0,0.10390689]
[1746095319088,0.37914,96246.0,96233.0,0.00480809]
[1746095319292,0.36674,96246.0,96241.0,0.101]
[1746095319494,0.18053,96246.0,96241.0,0.102]
[1746095319695,0.17182,96246.0,96242.0,0.1883]
[1746095319886,0.17178,96246.0,96242.0,0.29220258]
[1746095320086,0.17182,96246.0,96242.0,0.29220258]
[1746095320888,0.09551504,96246.0,96242.0,0.29220258]
[1746095321200,0.04461504,96246.0,96244.0,0.1]
[1746095321494,4e-05,96246.0,96245.0,0.1873]
[1746095321695,0.35438948,96248.0,96245.0,0.1873]
[1746095321900,0.001,96246.0,96245.0,0.29120258]